fUST/lending_fUST_20250310
["ID","MTS","AMOUNT","RATE_DAILY","PERIOD"]
[355788708,1741561885442,-160.0,0.00058993,5]
[355788709,1741561885461,-1000.0,0.00058999,120]
[355788710,1741561885478,-973.30149618,0.00058999,120]
[355788711,1741561885496,-500.0,0.00059,120]
[355788712,1741561885514,-79188.81855904,0.00059,30]
[355788713,1741561885532,-496.0,0.00059,120]
[355788714,1741561885551,-47472.75677792,0.00059,30]
[355788715,1741561885570,-47472.75677792,0.00059,30]
[355788716,1741561885589,-78894.93294437,0.00059,30]
[355788717,1741561885608,-78894.93294437,0.00059,30]
[355788718,1741561885625,-41842.21443634,0.00059,30]
[355788719,1741561885646,-41842.21443634,0.00059,30]
[355788720,1741561885664,-2036.0,0.00059,70]
[355788721,1741561885840,-500.0,0.00059,120]
[355788722,1741561885854,-22950.71339036,0.00059,30]
[355788723,1741561885864,-22950.71339036,0.00059,30]
[355788724,1741561885875,-500.0,0.00059,120]
[355788725,1741561885892,-88877.35519385,0.00059,30]
[355788726,1741561885905,-88877.35519385,0.00059,30]
[355788727,1741561885915,-32396.46391335,0.00059,30]
[355788728,1741561885925,-32396.46391335,0.00059,30]
[355788729,1741561885935,-505.73859896,0.00059,120]
[355788730,1741561885945,-39447.46647218,0.00059,30]
[355788731,1741561885955,-39447.46647218,0.00059,30]
[355788732,1741561885965,-11868.18919448,0.00059,30]
[355788733,1741561885975,-11868.18919448,0.00059,30]
[355788734,1741561885987,-151.0,0.00059,120]
[355788735,1741561885998,-2967.04729862,0.00059,30]
[355788736,1741561886010,-2967.04729862,0.00059,30]
[355788737,1741561886020,-151.0,0.00059,120]
[355788738,1741561886030,-151.0,0.00059,120]
[355788739,1741561886042,-80360.64278969,0.00059,30]
[355788740,1741561886052,-80360.64278969,0.00059,30]
[355788741,1741561886063,-151.0,0.00059,120]
[355788742,1741561886082,-151.0,0.00059,120]
[355788743,1741561886092,-151.0,0.00059,120]
[355788744,1741561886103,-151.0,0.00059,120]
[355788745,1741561886113,-547.577829,0.00059,7]
[355788746,1741561886123,-547.577829,0.00059,7]
[355788747,1741561886134,-547.577829,0.00059,7]
[355788748,1741561886147,-547.577829,0.00059,7]
[355788749,1741561886158,-151.0,0.00059,120]
[355788750,1741561886168,-253.938024,0.00059,120]
[355788751,1741561886178,-151.0,0.00059,120]
[355788752,1741561886188,-151.0,0.00059,120]
[355788753,1741561886199,-151.0,0.00059,120]
[355788754,1741561886209,-738.703946,0.00059,120]
[355788755,1741561886219,-738.703946,0.00059,120]
[355788756,1741561886229,-738.703946,0.00059,120]
[355788757,1741561886239,-738.703946,0.00059,120]
[355788758,1741561886249,-738.703946,0.00059,120]
[355788759,1741561886259,-738.703939,0.00059,120]
[355788760,1741561886269,-151.0,0.00059,120]
[355788761,1741561886279,-151.0,0.00059,120]
[355788762,1741561886289,-247.688565,0.00059,120]
[355788763,1741561886299,-500.0,0.00059,2]
[355788764,1741561886309,-589.823418,0.00059,120]
[355788765,1741561886318,-589.823418,0.00059,120]
[355788766,1741561886327,-589.823418,0.00059,120]
[355788767,1741561886337,-589.823418,0.00059,120]
[355788768,1741561886347,-589.823418,0.00059,120]
[355788769,1741561886358,-589.823409,0.00059,120]
[355788770,1741561886367,-151.0,0.00059,120]
[355788771,1741561886378,-151.0,0.00059,120]
[355788772,1741561886390,-150.38,0.00059,120]
[355788773,1741561886400,-183.873572,0.00059,2]
[355788774,1741561886409,-218.155562,0.00059,120]
[355788775,1741561886420,-218.155552,0.00059,120]
[355788776,1741561886429,-250.0,0.00059,120]
[355788777,1741561886439,-156.80924409,0.00059,120]
[355788778,1741561886450,-150.56,0.00059,120]
[355788779,1741561886460,-500.0,0.00059,120]
[355788780,1741561886469,-150.38,0.00059,2]
[355788781,1741561886480,-150.38,0.00059,120]
[355788782,1741561886491,-150.38,0.00059,2]
[355788783,1741561886501,-326.02261,0.00059,120]
[355788784,1741561886511,-500.0,0.00059027,2]
[355788785,1741561886520,-150.38,0.00059027,120]
[355788786,1741561886531,-696.14795553,0.00059027,120]
[355788787,1741561886542,-150.38,0.00059027,120]
[355788788,1741561886551,-500.0,0.00059055,2]
[355788789,1741561886562,-150.38,0.00059055,120]
[355788790,1741561886572,-272.69745219,0.00059055,120]
[355788791,1741561886582,-500.0,0.00059082,2]
[355788792,1741561886593,-152.25134365,0.00059082,120]
[355788793,1741561886603,-500.0,0.0005911,2]
[355788794,1741561886613,-500.0,0.00059137,2]
[355788795,1741561886623,-500.0,0.00059164,2]
[355788796,1741561886632,-443.56454461,0.00059178,120]
[355788797,1741561886646,-234.07,0.00059178,120]
[355788798,1741561886656,-573.11,0.00059178,120]
[355788799,1741561886665,-1049.7,0.00059178,120]
[355788800,1741561886675,-500.0,0.00059178,120]
[355788801,1741561886686,-552.82,0.00059178,120]
[355788802,1741561886696,-1150.58,0.00059178,120]
[355788803,1741561886707,-500.0,0.00059178,15]
[355788804,1741561886717,-840.41,0.00059178,120]
[355788805,1741561886727,-1040.66,0.00059178,2]
[355788806,1741561886737,-2292.91,0.00059178,120]
[355788807,1741561886748,-500.0,0.00059178,120]
[355788808,1741561886758,-611.05,0.00059178,120]
[355788809,1741561886769,-563.83,0.00059178,120]
[355788810,1741561886779,-500.0,0.00059178,120]
[355788811,1741561886790,-383.32496655,0.00059178,120]
[355788812,1741561886801,-500.0,0.00059178,120]
[355788813,1741561886811,-978.32,0.00059178,120]
[355788814,1741561886820,-823.81,0.00059178,120]
[355788815,1741561886831,-500.0,0.00059178,120]
[355788816,1741561886840,-2458.09,0.00059178,120]
[355788817,1741561886850,-500.0,0.00059178,120]
[355788818,1741561886860,-562.58,0.00059178,120]
[355788819,1741561886870,-6422.56,0.00059178,120]
[355788820,1741561886880,-1996.56,0.00059178,120]
[355788821,1741561886893,-994.46,0.00059178,120]
[355788822,1741561886903,-624.89,0.00059178,120]
[355788823,1741561886912,-1136.07,0.00059178,120]
[355788824,1741561886922,-585.67,0.00059178,120]
[355788825,1741561886932,-1039.41,0.00059178,120]
[355788826,1741561886943,-1642.97,0.00059178,120]
[355788827,1741561886953,-500.0,0.00059178,120]
[355788828,1741561886963,-1219.25,0.00059178,120]
[355788829,1741561886974,-500.0,0.00059178,120]
[355788830,1741561886984,-500.0,0.00059178,120]
[355788831,1741561886998,-500.0,0.00059178,120]
[355788832,1741561887008,-2917.23,0.00059178,120]
[355788833,1741561887019,-1287.58,0.00059178,120]
[355788834,1741561887029,-41874.99,0.00059178,7]
[355788835,1741561887041,-1227.07,0.00059178,120]
[355788836,1741561887051,-820.42,0.00059178,120]
[355788837,1741561887062,-522.38,0.00059178,120]
[355788838,1741561887073,-775.92,0.00059178,120]
[355788839,1741561887083,-500.0,0.00059178,120]
[355788840,1741561887093,-540.69,0.00059178,120]
[355788841,1741561887104,-572.94,0.00059178,120]
[355788842,1741561887114,-1783.37,0.00059178,60]
[355788843,1741561887124,-643.57,0.00059178,120]
[355788844,1741561887133,-501.97,0.00059178,120]
[355788845,1741561887146,-2622.13,0.00059178,120]
[355788846,1741561887156,-1265.09,0.00059178,120]
[355788847,1741561887166,-500.0,0.00059178,120]
[355788848,1741561887176,-742.7,0.00059178,120]
[355788849,1741561887185,-500.0,0.00059178,120]
[355788850,1741561887197,-573.56,0.00059178,120]
[355788851,1741561887327,-500.0,0.00059178,120]
[355788852,1741561887337,-500.0,0.00059178,120]
[355788853,1741561887346,-500.0,0.00059178,120]
[355788854,1741561887356,-500.0,0.00059192,2]
[355788855,1741561887365,-500.0,0.00059219,2]
[355788856,1741561887375,-200.0,0.0005924,120]
[355788857,1741561887385,-500.0,0.00059247,2]
[355788858,1741561887396,-500.0,0.00059274,2]
[355788859,1741561887406,-722.88573433,0.000593,120]
[355788860,1741561887416,-500.0,0.00059301,2]
[355788861,1741561887426,-500.0,0.00059329,2]
[355788862,1741561887435,-500.0,0.00059356,2]
[355788863,1741561887445,-500.0,0.00059384,2]
[355788864,1741561887455,-500.0,0.00059411,2]
[355788865,1741561887464,-500.0,0.00059438,2]
[355788866,1741561887474,-573.11,0.00059452,120]
[355788867,1741561887484,-1049.7,0.00059452,120]
[355788868,1741561887494,-500.0,0.00059452,120]
[355788869,1741561887504,-552.82,0.00059452,120]
[355788870,1741561887513,-1150.58,0.00059452,120]
[355788871,1741561887523,-500.0,0.00059452,15]
[355788872,1741561887534,-840.41,0.00059452,120]
[355788873,1741561887544,-1040.66,0.00059452,2]
[355788874,1741561887554,-2292.91,0.00059452,120]
[355788875,1741561887564,-338.58486665,0.00059452,120]
[355788876,1741561887574,-611.05,0.00059452,120]
[355788877,1741561887585,-563.83,0.00059452,120]
[355788878,1741561887595,-500.0,0.00059452,120]
[355788879,1741561887605,-500.0,0.00059452,120]
[355788880,1741561887615,-978.32,0.00059452,120]
[355788881,1741561887625,-823.81,0.00059452,120]
[355788882,1741561887635,-500.0,0.00059452,120]
[355788883,1741561887645,-2458.09,0.00059452,120]
[355788884,1741561887656,-489.93711619,0.00059452,120]
[355788885,1741561887666,-6422.56,0.00059452,120]
[355788886,1741561887676,-1996.56,0.00059452,120]
[355788887,1741561887686,-994.46,0.00059452,120]
[355788888,1741561887696,-624.89,0.00059452,120]
[355788889,1741561887706,-1136.07,0.00059452,120]
[355788890,1741561887716,-585.67,0.00059452,120]
[355788891,1741561887726,-1039.41,0.00059452,120]
[355788892,1741561887736,-1642.97,0.00059452,120]
[355788893,1741561887746,-1219.25,0.00059452,120]
[355788894,1741561887756,-500.0,0.00059452,120]
[355788895,1741561887766,-549.50071635,0.00059452,120]
[355788896,1741561887777,-2917.23,0.00059452,120]
[355788897,1741561887786,-1287.58,0.00059452,120]
[355788898,1741561887796,-41874.99,0.00059452,7]
[355788899,1741561887806,-1227.07,0.00059452,120]
[355788900,1741561887816,-820.42,0.00059452,120]
[355788901,1741561887825,-522.38,0.00059452,120]
[355788902,1741561887835,-775.92,0.00059452,120]
[355788903,1741561887845,-500.0,0.00059452,120]
[355788904,1741561887855,-540.69,0.00059452,120]
[355788905,1741561887865,-572.94,0.00059452,120]
[355788906,1741561887875,-1783.37,0.00059452,60]
[355788907,1741561887888,-643.57,0.00059452,120]
[355788908,1741561887899,-501.97,0.00059452,120]
[355788909,1741561887909,-2622.13,0.00059452,120]
[355788910,1741561887921,-1265.09,0.00059452,120]
[355788911,1741561887932,-500.0,0.00059452,120]
[355788912,1741561887943,-742.7,0.00059452,120]
[355788913,1741561887953,-500.0,0.00059452,120]
[355788914,1741561887963,-573.56,0.00059452,120]
[355788915,1741561887974,-500.0,0.00059452,120]
[355788916,1741561887984,-500.0,0.00059452,120]
[355788917,1741561887995,-500.0,0.00059452,120]
[355788918,1741561888004,-500.0,0.00059466,2]
[355788919,1741561888021,-500.0,0.00059493,2]
[355788920,1741561888031,-500.0,0.00059521,2]
[355788921,1741561888042,-500.0,0.00059548,2]
[355788922,1741561888052,-500.0,0.00059548,120]
[355788923,1741561888063,-464.207811,0.0005955,2]
[355788924,1741561888073,-500.0,0.00059575,2]
[355788925,1741561888085,-500.0,0.00059603,2]
[355788926,1741561888095,-765.05321936,0.0005963,2]
[355788927,1741561888105,-573.11,0.00059726,120]
[355788928,1741561888115,-1049.7,0.00059726,120]
[355788929,1741561888125,-500.0,0.00059726,120]
[355788930,1741561888135,-552.82,0.00059726,120]
[355788931,1741561888146,-1150.58,0.00059726,120]
[355788932,1741561888156,-500.0,0.00059726,15]
[355788933,1741561888168,-840.41,0.00059726,120]
[355788934,1741561888178,-1040.66,0.00059726,2]
[355788935,1741561888188,-2292.91,0.00059726,120]
[355788936,1741561888198,-611.05,0.00059726,120]
[355788937,1741561888207,-563.83,0.00059726,120]
[355788938,1741561888218,-500.0,0.00059726,120]
[355788939,1741561888228,-254.09081104,0.00059726,120]
[355788940,1741561888238,-978.32,0.00059726,120]
[355788941,1741561888249,-823.81,0.00059726,120]
[355788942,1741561888258,-500.0,0.00059726,120]
[355788943,1741561888269,-2458.09,0.00059726,120]
[355788944,1741561888279,-1341.98,0.00059726,120]
[355788945,1741561888289,-6422.56,0.00059726,120]
[355788946,1741561888299,-1996.56,0.00059726,120]
[355788947,1741561888310,-994.46,0.00059726,120]
[355788948,1741561888320,-624.89,0.00059726,120]
[355788949,1741561888330,-1136.07,0.00059726,120]
[355788950,1741561888339,-585.67,0.00059726,120]
[355788951,1741561888349,-1039.41,0.00059726,120]
[355788952,1741561888359,-1642.97,0.00059726,120]
[355788953,1741561888369,-1219.25,0.00059726,120]
[355788954,1741561888380,-500.0,0.00059726,120]
[355788955,1741561888393,-2917.23,0.00059726,120]
[355788956,1741561888404,-1287.58,0.00059726,120]
[355788957,1741561888415,-41874.99,0.00059726,7]
[355788958,1741561888425,-1227.07,0.00059726,120]
[355788959,1741561888434,-820.42,0.00059726,120]
[355788960,1741561888444,-522.38,0.00059726,120]
[355788961,1741561888455,-775.92,0.00059726,120]
[355788962,1741561888464,-544.65757719,0.00059726,120]
[355788963,1741561888475,-540.69,0.00059726,120]
[355788964,1741561888484,-572.94,0.00059726,120]
[355788965,1741561888495,-1783.37,0.00059726,60]
[355788966,1741561888505,-643.57,0.00059726,120]
[355788967,1741561888515,-501.97,0.00059726,120]
[355788968,1741561888524,-2622.13,0.00059726,120]
[355788969,1741561888534,-1265.09,0.00059726,120]
[355788970,1741561888544,-500.0,0.00059726,120]
[355788971,1741561888554,-742.7,0.00059726,120]
[355788972,1741561888563,-375.70918508,0.00059726,120]
[355788973,1741561888574,-573.56,0.00059726,120]
[355788974,1741561888584,-500.0,0.00059726,120]
[355788975,1741561888594,-369.99818682,0.00059726,120]
[355788976,1741561888604,-500.0,0.00059726,120]
[355788977,1741561888614,-547.577829,0.00059999,7]
[355788978,1741561888624,-547.577829,0.00059999,7]
[355788979,1741561888634,-573.11,0.00059999,120]
[355788980,1741561888647,-1049.7,0.00059999,120]
[355788981,1741561888657,-552.82,0.00059999,120]
[355788982,1741561888666,-1150.58,0.00059999,120]
[355788983,1741561888677,-627.87,0.00059999,15]
[355788984,1741561888687,-840.41,0.00059999,120]
[355788985,1741561888697,-1040.66,0.00059999,2]
[355788986,1741561888707,-2292.91,0.00059999,120]
[355788987,1741561888717,-611.05,0.00059999,120]
[355788988,1741561888727,-563.83,0.00059999,120]
[355788989,1741561888738,-500.0,0.00059999,120]
[355788990,1741561888748,-978.32,0.00059999,120]
[355788991,1741561888758,-823.81,0.00059999,120]
[355788992,1741561888768,-500.0,0.00059999,120]
[355788993,1741561888779,-2458.09,0.00059999,120]
[355788994,1741561888789,-6422.56,0.00059999,120]
[355788995,1741561888800,-1996.56,0.00059999,120]
[355788996,1741561888810,-994.46,0.00059999,120]
[355788997,1741561888820,-624.89,0.00059999,120]
[355788998,1741561888831,-1136.07,0.00059999,120]
[355788999,1741561888840,-585.67,0.00059999,120]
[355789000,1741561888851,-1039.41,0.00059999,120]
[355789001,1741561888861,-1642.97,0.00059999,120]
[355789002,1741561888871,-1219.25,0.00059999,120]
[355789003,1741561888882,-500.0,0.00059999,120]
[355789004,1741561888894,-2917.23,0.00059999,120]
[355789005,1741561888905,-1287.58,0.00059999,120]
[355789006,1741561888916,-41874.99,0.00059999,7]
[355789007,1741561888926,-1227.07,0.00059999,120]
[355789008,1741561888937,-820.42,0.00059999,120]
[355789009,1741561888946,-522.38,0.00059999,120]
[355789010,1741561888956,-775.92,0.00059999,120]
[355789011,1741561888966,-540.69,0.00059999,120]
[355789012,1741561888977,-572.94,0.00059999,120]
[355789013,1741561888987,-1783.37,0.00059999,60]
[355789014,1741561889001,-643.57,0.00059999,120]
[355789015,1741561889011,-501.97,0.00059999,120]
[355789016,1741561889021,-2622.13,0.00059999,120]
[355789017,1741561889032,-1265.09,0.00059999,120]
[355789018,1741561889043,-500.0,0.00059999,120]
[355789019,1741561889053,-742.7,0.00059999,120]
[355789020,1741561889063,-573.56,0.00059999,120]
[355789021,1741561889074,-500.0,0.00059999,120]
[355789022,1741561889086,-500.0,0.00059999,120]
[355789023,1741561889096,-300.0,0.0006,120]
[355789024,1741561889106,-50000.00140523,0.0006,30]
[355789025,1741561889116,-10000.0,0.0006,120]
[355789026,1741561889126,-10000.0,0.0006,120]
[355789027,1741561889136,-2989.0,0.0006,120]
[355789028,1741561889147,-169.0,0.0006,120]
[355789029,1741561889156,-158.0,0.0006,120]
[355789030,1741561889166,-163.0,0.0006,120]
[355789031,1741561889176,-7666.50175344,0.0006,120]
[355789032,1741561889185,-298.0,0.0006,120]
[355789033,1741561889195,-349.0,0.0006,120]
[355789034,1741561889205,-162.0,0.0006,120]
[355789035,1741561889215,-162.0,0.0006,120]
[355789036,1741561889225,-161.0,0.0006,120]
[355789037,1741561889234,-148830.58882282,0.0006,2]
[355789038,1741561889244,-151.0,0.0006,120]
[355789039,1741561889254,-151.0,0.0006,120]
[355789040,1741561889263,-151.0,0.0006,120]
[355789041,1741561889273,-606.0,0.0006,120]
[355789042,1741561889283,-416.66666667,0.0006,7]
[355789043,1741561889294,-15555.67399697,0.0006,7]
[355789044,1741561889304,-500.0,0.00060096,120]
[355789045,1741561889314,-573.11,0.00060273,120]
[355789046,1741561889324,-1049.7,0.00060273,120]
[355789047,1741561889334,-552.82,0.00060273,120]
[355789048,1741561889343,-1150.58,0.00060273,120]
[355789049,1741561889353,-840.41,0.00060273,120]
[355789050,1741561889363,-1040.66,0.00060273,2]
[355789051,1741561889373,-2292.91,0.00060273,120]
[355789052,1741561889383,-611.05,0.00060273,120]
[355789053,1741561889395,-563.83,0.00060273,120]
[355789054,1741561889406,-500.0,0.00060273,120]
[355789055,1741561889415,-978.32,0.00060273,120]
[355789056,1741561889425,-823.81,0.00060273,120]
[355789057,1741561889435,-500.0,0.00060273,120]
[355789058,1741561889444,-2458.09,0.00060273,120]
[355789059,1741561889454,-6422.56,0.00060273,120]
[355789060,1741561889464,-1996.56,0.00060273,120]
[355789061,1741561889474,-994.46,0.00060273,120]
[355789062,1741561889484,-624.89,0.00060273,120]
[355789063,1741561889493,-1136.07,0.00060273,120]
[355789064,1741561889503,-585.67,0.00060273,120]
[355789065,1741561889513,-1039.41,0.00060273,120]
[355789066,1741561889522,-1642.97,0.00060273,120]
[355789067,1741561889532,-1219.25,0.00060273,120]
[355789068,1741561889541,-2917.23,0.00060273,120]
[355789069,1741561889551,-1287.58,0.00060273,120]
[355789070,1741561889561,-41874.99,0.00060273,7]
[355789071,1741561889570,-1227.07,0.00060273,120]
[355789072,1741561889580,-820.42,0.00060273,120]
[355789073,1741561889590,-522.38,0.00060273,120]
[355789074,1741561889600,-775.92,0.00060273,120]
[355789075,1741561889610,-540.69,0.00060273,120]
[355789076,1741561889619,-572.94,0.00060273,120]
[355789077,1741561889629,-1783.37,0.00060273,60]
[355789078,1741561889639,-643.57,0.00060273,120]
[355789079,1741561889648,-501.97,0.00060273,120]
[355789080,1741561889789,-2622.13,0.00060273,120]
[355789081,1741561889800,-1265.09,0.00060273,120]
[355789082,1741561889810,-500.0,0.00060273,120]
[355789083,1741561889820,-742.7,0.00060273,120]
[355789084,1741561889830,-573.56,0.00060273,120]
[355789085,1741561889840,-500.0,0.00060273,120]
[355789086,1741561889851,-500.0,0.00060273,120]
[355789087,1741561889861,-1000.0,0.00060274,15]
[355789088,1741561889870,-547.577829,0.00060547,7]
[355789089,1741561889881,-547.577837,0.00060547,7]
[355789090,1741561889892,-573.11,0.00060547,120]
[355789091,1741561889902,-1049.7,0.00060547,120]
[355789092,1741561889912,-552.82,0.00060547,120]
[355789093,1741561889923,-1150.58,0.00060547,120]
[355789094,1741561889933,-840.41,0.00060547,120]
[355789095,1741561889943,-1040.66,0.00060547,2]
[355789096,1741561889954,-2292.91,0.00060547,120]
[355789097,1741561889963,-611.05,0.00060547,120]
[355789098,1741561889973,-563.83,0.00060547,120]
[355789099,1741561889984,-500.0,0.00060547,120]
[355789100,1741561889995,-978.32,0.00060547,120]
[355789101,1741561890008,-823.81,0.00060547,120]
[355789102,1741561890018,-157.31,0.00060547,120]
[355789103,1741561890029,-2458.09,0.00060547,120]
[355789104,1741561890039,-6422.56,0.00060547,120]
[355789105,1741561890050,-1996.56,0.00060547,120]
[355789106,1741561890061,-994.46,0.00060547,120]
[355789107,1741561890071,-624.89,0.00060547,120]
[355789108,1741561890082,-1136.07,0.00060547,120]
[355789109,1741561890092,-585.67,0.00060547,120]
[355789110,1741561890101,-1039.41,0.00060547,120]
[355789111,1741561890111,-1642.97,0.00060547,120]
[355789112,1741561890122,-1219.25,0.00060547,120]
[355789113,1741561890132,-2917.23,0.00060547,120]
[355789114,1741561890144,-1287.58,0.00060547,120]
[355789115,1741561890154,-41874.99,0.00060547,7]
[355789116,1741561890164,-1227.07,0.00060547,120]
[355789117,1741561890175,-820.42,0.00060547,120]
[355789118,1741561890185,-522.38,0.00060547,120]
[355789119,1741561890196,-775.92,0.00060547,120]
[355789120,1741561890208,-540.69,0.00060547,120]
[355789121,1741561890219,-572.94,0.00060547,120]
[355789122,1741561890230,-1783.37,0.00060547,60]
[355789123,1741561890240,-643.57,0.00060547,120]
[355789124,1741561890250,-501.97,0.00060547,120]
[355789125,1741561890260,-2622.13,0.00060547,120]
[355789126,1741561890271,-1265.09,0.00060547,120]
[355789127,1741561890282,-500.0,0.00060547,120]
[355789128,1741561890292,-742.7,0.00060547,120]
[355789129,1741561890302,-573.56,0.00060547,120]
[355789130,1741561890312,-500.0,0.00060547,120]
[355789131,1741561890323,-464.207811,0.00060548,2]
[355789132,1741561890334,-500.0,0.00060644,120]
[355789133,1741561890345,-573.11,0.00060821,120]
[355789134,1741561890356,-1049.7,0.00060821,120]
[355789135,1741561890366,-552.82,0.00060821,120]
[355789136,1741561890377,-1150.58,0.00060821,120]
[355789137,1741561890386,-840.41,0.00060821,120]
[355789138,1741561890402,-1040.66,0.00060821,2]
[355789139,1741561890411,-2292.91,0.00060821,120]
[355789140,1741561890420,-611.05,0.00060821,120]
[355789141,1741561890428,-563.83,0.00060821,120]
[355789142,1741561890438,-500.0,0.00060821,120]
[355789143,1741561890448,-978.32,0.00060821,120]
[355789144,1741561890458,-823.81,0.00060821,120]
[355789145,1741561890468,-2458.09,0.00060821,120]
[355789146,1741561890478,-1341.98,0.00060821,120]
[355789147,1741561890488,-6422.56,0.00060821,120]
[355789148,1741561890499,-1996.56,0.00060821,120]
[355789149,1741561890510,-994.46,0.00060821,120]
[355789150,1741561890520,-624.89,0.00060821,120]
[355789151,1741561890530,-1136.07,0.00060821,120]
[355789152,1741561890540,-585.67,0.00060821,120]
[355789153,1741561890549,-1039.41,0.00060821,120]
[355789154,1741561890559,-1642.97,0.00060821,120]
[355789155,1741561890569,-1219.25,0.00060821,120]
[355789156,1741561890579,-2917.23,0.00060821,120]
[355789157,1741561890590,-1287.58,0.00060821,120]
[355789158,1741561890600,-41874.99,0.00060821,7]
[355789159,1741561890610,-1227.07,0.00060821,120]
[355789160,1741561890620,-820.42,0.00060821,120]
[355789161,1741561890630,-522.38,0.00060821,120]
[355789162,1741561890641,-775.92,0.00060821,120]
[355789163,1741561890651,-540.69,0.00060821,120]
[355789164,1741561890661,-572.94,0.00060821,120]
[355789165,1741561890670,-1783.37,0.00060821,60]
[355789166,1741561890680,-643.57,0.00060821,120]
[355789167,1741561890690,-501.97,0.00060821,120]
[355789168,1741561890699,-2622.13,0.00060821,120]
[355789169,1741561890709,-1265.09,0.00060821,120]
[355789170,1741561890719,-500.0,0.00060821,120]
[355789171,1741561890729,-742.7,0.00060821,120]
[355789172,1741561890739,-573.56,0.00060821,120]
[355789173,1741561890749,-433.98049326,0.00060821,120]
[355789174,1741561890758,-559.0265757,0.00060903,60]
[355789175,1741561890767,-559.0265757,0.00060903,60]
[355789176,1741561890778,-559.0265757,0.00060903,60]
[355789177,1741561890787,-559.0265757,0.00060903,60]
[355789178,1741561890797,-559.0265757,0.00060903,60]
[355789179,1741561890807,-1118.0531514,0.00060903,60]
[355789180,1741561890817,-150.0,0.00061,120]
[355789181,1741561890827,-150.46,0.00061,30]
[355789182,1741561890836,-332.02,0.00061,30]
[355789183,1741561890845,-573.13829739,0.00061095,120]
[355789184,1741561890856,-1049.87712588,0.00061095,120]
[355789185,1741561890865,-553.00991605,0.00061095,120]
[355789186,1741561890875,-1150.61002511,0.00061095,120]
[355789187,1741561890884,-840.52127128,0.00061095,120]
[355789188,1741561890898,-1040.73779409,0.00061095,2]
[355789189,1741561890908,-2293.1330006,0.00061095,120]
[355789190,1741561890918,-611.24151397,0.00061095,120]
[355789191,1741561890927,-564.023141,0.00061095,120]
[355789192,1741561890937,-282.97599777,0.00061095,120]
[355789193,1741561890947,-978.53739042,0.00061095,120]
[355789194,1741561890956,-823.87555585,0.00061095,120]
[355789195,1741561890967,-2458.31879291,0.00061095,120]
[355789196,1741561890977,-6422.60526076,0.00061095,120]
[355789197,1741561890988,-1996.5791483,0.00061095,120]
[355789198,1741561891002,-994.67498525,0.00061095,120]
[355789199,1741561891012,-625.050251,0.00061095,120]
[355789200,1741561891022,-1136.29635947,0.00061095,120]
[355789201,1741561891032,-585.83078842,0.00061095,120]
[355789202,1741561891042,-1039.54018508,0.00061095,120]
[355789203,1741561891052,-1643.05692984,0.00061095,120]
[355789204,1741561891062,-1219.437377,0.00061095,120]
[355789205,1741561891072,-2917.26381181,0.00061095,120]
[355789206,1741561891083,-1287.80375785,0.00061095,120]
[355789207,1741561891094,-41875.0604,0.00061095,7]